Workbook

Sheet Informações Gerais
A4: SUPERINTENDÊNCIA NACIONAL DE PREVIDÊNCIA COMPLEMENTAR
A5: Planilhas para o estudo técnico disposto na Instrução Previc nº 23/2015
A11: Orientações para preenchimento das planilhas:
A13: Preencher as células em branco das planilhas: Projeções de ativo, Projeção do patr. de cobertura e Renda fixa "na curva".
A15: Projeções de ativo
A17: As projeções de ativo devem ser feitas em termos reais descontados do índice inflacionário;
A18: O "Índice de inflação" deve ser selecionado na lista suspensa; e
A19: A rubrica "Projeção do índice inflacionário" deve ser expressas em termos anuais.
A21: Fluxos de ativo
A22: Os fluxos anuais se referem ao total de recursos movimentados anualmente;
A23: Os fluxos devem ser descritos em termos reais;
A24: Os fluxos anuais de investimento e desinvestimento devem ser informados líquidos despesas;
A25: São consideradas receitas os rendimentos tais quais dividendos, alugueis e cupons (ganhos de capital, venda por valor superior ao de compra, não devem ser inseridos como receitas);
A26: A rubrica "Transferências ao PGA" deve conter as estimativas de valores anuais transferidos ao PGA referentes exclusivamente a deduções dos investimentos; e
A27: A rubrica "Transferências ao PGA" deve ser informada como valor positivo, caso haja reversão de valor do PGA aos investimentos dos planos, devem ser inseridos com sinal negativo.
A29: Saldos de ativo
A30: Os saldos anuais se referem às projeções de saldo ao final de cada exercício; e
A31: A rubrica "Outros ativos" deve ter o conteúdo detalhado em documento anexo.
A33: Rentabilidades
A34: As rentabilidades de cada segmento e do plano devem ser expresso em termos líquidos e anuais.
A36: Projeção do patrimônio de cobertura
A38: Todos os fluxos devem ser evidenciados com base nos fluxo reais e posicionados ao final de cada exercício;
A39: Tanto as entradas, quanto as saídas devem ser lançadas em valor absoluto;
A40: O primeiro ano da planilha deverá conter os fluxos realizados no ano anterior ao ano de referência do estudo e, nos anos posteriores, deverão ser projetados (estimados) os fluxos anuais, até o ano do último pagamento de benefício previsto para o plano;
A41: Todos os fluxos devem ser evidenciados líquidos de parcelas referentes a custeio administrativo e de eventuais despesas administrativa ou de investimento;
A42: Os fluxos anuais devem ser projetados em conformidade com as hipóteses e premissas adotadas na última avaliação atuarial do plano de benefícios;
A43: A Rentabilidade Real Projetada deve corresponder à taxa informada na planilha "Rentabilidades" que compõe esta pasta de trabalho;
A44: O Patrimônio Projetado deve corresponder ao patrimônio de cobertura rentabilizado pela taxa real e descontado do fluxo de caixa apurado em cada exercício;
A45: O último ano do fluxo de Patrimônio Projetado deve corresponder ao patrimônio residual do plano, se houver; e
A46: As rubricas "Outros receitas" e "Outras despesas" devem ter o conteúdo detalhados em documento anexo.
A48: Renda Fixa "na curva"
A50: A coluna "Taxa de apropriação dos juros" somente deve ser preenchida se houver componente pré-fixado na remuneração do título.
A51: A coluna "Expectativa média para o indexador" se refere a taxa média do indexador expressa em termos anuais e calculada entre a data de referência do estudo e o vencimento do título.

Sheet Projeções de ativo
C1: As projeções estão descitas em termos:
C2: Reais
A3: EXERCÍCIOS | C3: 2015 | D3: =C3+1 -> 2016 | E3: =D3+1 -> 2017 | F3: =E3+1 -> 2018 | G3: =F3+1 -> 2019 | H3: =G3+1 -> 2020 | I3: =H3+1 -> 2021 | J3: =I3+1 -> 2022 | K3: =J3+1 -> 2023 | L3: =K3+1 -> 2024 | M3: =L3+1 -> 2025 | N3: =M3+1 -> 2026 | O3: =N3+1 -> 2027 | P3: =O3+1 -> 2028 | Q3: =P3+1 -> 2029 | R3: =Q3+1 -> 2030 | S3: =R3+1 -> 2031 | T3: =S3+1 -> 2032 | U3: =T3+1 -> 2033 | V3: =U3+1 -> 2034 | W3: =V3+1 -> 2035 | X3: =W3+1 -> 2036 | Y3: =X3+1 -> 2037 | Z3: =Y3+1 -> 2038 | AA3: =Z3+1 -> 2039 | AB3: =AA3+1 -> 2040 | AC3: =AB3+1 -> 2041 | AD3: =AC3+1 -> 2042 | AE3: =AD3+1 -> 2043 | AF3: =AE3+1 -> 2044 | AG3: =AF3+1 -> 2045 | AH3: =AG3+1 -> 2046 | AI3: =AH3+1 -> 2047 | AJ3: =AI3+1 -> 2048 | AK3: =AJ3+1 -> 2049 | AL3: =AK3+1 -> 2050 | AM3: =AL3+1 -> 2051 | AN3: =AM3+1 -> 2052 | AO3: =AN3+1 -> 2053 | AP3: =AO3+1 -> 2054 | AQ3: =AP3+1 -> 2055 | AR3: =AQ3+1 -> 2056 | AS3: =AR3+1 -> 2057 | AT3: =AS3+1 -> 2058 | AU3: =AT3+1 -> 2059 | AV3: =AU3+1 -> 2060 | AW3: =AV3+1 -> 2061 | AX3: =AW3+1 -> 2062 | AY3: =AX3+1 -> 2063 | AZ3: =AY3+1 -> 2064 | BA3: =AZ3+1 -> 2065 | BB3: =BA3+1 -> 2066 | BC3: =BB3+1 -> 2067 | BD3: =BC3+1 -> 2068 | BE3: =BD3+1 -> 2069 | BF3: =BE3+1 -> 2070 | BG3: =BF3+1 -> 2071 | BH3: =BG3+1 -> 2072 | BI3: =BH3+1 -> 2073 | BJ3: =BI3+1 -> 2074 | BK3: =BJ3+1 -> 2075 | BL3: =BK3+1 -> 2076 | BM3: =BL3+1 -> 2077 | BN3: =BM3+1 -> 2078 | BO3: =BN3+1 -> 2079 | BP3: =BO3+1 -> 2080 | BQ3: =BP3+1 -> 2081 | BR3: =BQ3+1 -> 2082 | BS3: =BR3+1 -> 2083 | BT3: =BS3+1 -> 2084 | BU3: =BT3+1 -> 2085 | BV3: =BU3+1 -> 2086 | BW3: =BV3+1 -> 2087 | BX3: =BW3+1 -> 2088 | BY3: =BX3+1 -> 2089 | BZ3: =BY3+1 -> 2090 | CA3: =BZ3+1 -> 2091 | CB3: =CA3+1 -> 2092 | CC3: =CB3+1 -> 2093 | CD3: =CC3+1 -> 2094 | CE3: =CD3+1 -> 2095 | CF3: =CE3+1 -> 2096 | CG3: =CF3+1 -> 2097 | CH3: =CG3+1 -> 2098 | CI3: =CH3+1 -> 2099 | CJ3: =CI3+1 -> 2100 | CK3: =CJ3+1 -> 2101 | CL3: =CK3+1 -> 2102 | CM3: =CL3+1 -> 2103 | CN3: =CM3+1 -> 2104 | CO3: =CN3+1 -> 2105 | CP3: =CO3+1 -> 2106 | CQ3: =CP3+1 -> 2107 | CR3: =CQ3+1 -> 2108 | CS3: =CR3+1 -> 2109 | CT3: =CS3+1 -> 2110 | CU3: =CT3+1 -> 2111 | CV3: =CU3+1 -> 2112 | CW3: =CV3+1 -> 2113 | CX3: =CW3+1 -> 2114 | CY3: =CX3+1 -> 2115 | CZ3: =CY3+1 -> 2116 | DA3: =CZ3+1 -> 2117 | DB3: =DA3+1 -> 2118 | DC3: =DB3+1 -> 2119 | DD3: =DC3+1 -> 2120 | DE3: =DD3+1 -> 2121 | DF3: =DE3+1 -> 2122 | DG3: =DF3+1 -> 2123 | DH3: =DG3+1 -> 2124 | DI3: =DH3+1 -> 2125 | DJ3: =DI3+1 -> 2126 | DK3: =DJ3+1 -> 2127 | DL3: =DK3+1 -> 2128 | DM3: =DL3+1 -> 2129 | DN3: =DM3+1 -> 2130 | DO3: =DN3+1 -> 2131 | DP3: =DO3+1 -> 2132 | DQ3: =DP3+1 -> 2133 | DR3: =DQ3+1 -> 2134 | DS3: =DR3+1 -> 2135 | DT3: =DS3+1 -> 2136 | DU3: =DT3+1 -> 2137 | DV3: =DU3+1 -> 2138 | DW3: =DV3+1 -> 2139 | DX3: =DW3+1 -> 2140 | DY3: =DX3+1 -> 2141 | DZ3: =DY3+1 -> 2142 | EA3: =DZ3+1 -> 2143 | EB3: =EA3+1 -> 2144 | EC3: =EB3+1 -> 2145 | ED3: =EC3+1 -> 2146 | EE3: =ED3+1 -> 2147 | EF3: =EE3+1 -> 2148 | EG3: =EF3+1 -> 2149 | EH3: =EG3+1 -> 2150 | EI3: 2151
A5: FLUXOS DE ATIVO
A6: FLUXOS DE ATIVO | C6: =SUM(C7+C12+C17+C22+C27+C32+C37+C42+C47) -> 0 | D6: =SUM(D7+D12+D17+D22+D27+D32+D37+D42+D47) -> 0 | E6: 0 | F6: 0 | G6: 0 | H6: 0 | I6: 0 | J6: 0 | K6: 0 | L6: 0 | M6: 0 | N6: 0 | O6: 0 | P6: 0 | Q6: 0 | R6: 0 | S6: 0 | T6: 0 | U6: 0 | V6: 0 | W6: 0 | X6: 0 | Y6: 0 | Z6: 0 | AA6: 0 | AB6: 0 | AC6: 0 | AD6: 0 | AE6: 0 | AF6: 0 | AG6: 0 | AH6: 0 | AI6: 0 | AJ6: 0 | AK6: 0 | AL6: 0 | AM6: 0 | AN6: 0 | AO6: 0 | AP6: 0 | AQ6: 0 | AR6: 0 | AS6: 0 | AT6: 0 | AU6: 0 | AV6: 0 | AW6: 0 | AX6: 0 | AY6: 0 | AZ6: 0 | BA6: 0 | BB6: 0 | BC6: 0 | BD6: 0 | BE6: 0 | BF6: 0 | BG6: 0 | BH6: 0 | BI6: 0 | BJ6: 0 | BK6: 0 | BL6: 0 | BM6: 0 | BN6: 0 | BO6: 0 | BP6: =SUM(BP7+BP12+BP17+BP22+BP27+BP32+BP37+BP42+BP47) -> 0 | BQ6: 0 | BR6: 0 | BS6: 0 | BT6: 0 | BU6: 0 | BV6: 0 | BW6: 0 | BX6: 0 | BY6: 0 | BZ6: 0 | CA6: 0 | CB6: 0 | CC6: 0 | CD6: 0 | CE6: 0 | CF6: 0 | CG6: 0 | CH6: 0 | CI6: 0 | CJ6: 0 | CK6: 0 | CL6: 0 | CM6: 0 | CN6: 0 | CO6: 0 | CP6: 0 | CQ6: 0 | CR6: 0 | CS6: 0 | CT6: 0 | CU6: 0 | CV6: 0 | CW6: 0 | CX6: 0 | CY6: 0 | CZ6: 0 | DA6: 0 | DB6: 0 | DC6: 0 | DD6: 0 | DE6: 0 | DF6: 0 | DG6: 0 | DH6: 0 | DI6: 0 | DJ6: 0 | DK6: 0 | DL6: 0 | DM6: 0 | DN6: 0 | DO6: 0 | DP6: 0 | DQ6: 0 | DR6: 0 | DS6: 0 | DT6: 0 | DU6: 0 | DV6: 0 | DW6: 0 | DX6: 0 | DY6: 0 | DZ6: 0 | EA6: 0 | EB6: =SUM(EB7+EB12+EB17+EB22+EB27+EB32+EB37+EB42+EB47) -> 0 | EC6: 0 | ED6: 0 | EE6: 0 | EF6: 0 | EG6: 0 | EH6: 0 | EI6: 0
A7: Títulos públicos federais (mantidos até o vencimento) | C7: =C8-C9-C10+C11 -> 0 | D7: 0 | E7: 0 | F7: 0 | G7: 0 | H7: 0 | I7: 0 | J7: 0 | K7: 0 | L7: 0 | M7: 0 | N7: 0 | O7: 0 | P7: 0 | Q7: 0 | R7: 0 | S7: 0 | T7: 0 | U7: 0 | V7: 0 | W7: 0 | X7: 0 | Y7: 0 | Z7: 0 | AA7: 0 | AB7: 0 | AC7: 0 | AD7: 0 | AE7: 0 | AF7: 0 | AG7: 0 | AH7: 0 | AI7: =AI8-AI9-AI10+AI11 -> 0 | AJ7: 0 | AK7: 0 | AL7: 0 | AM7: 0 | AN7: 0 | AO7: 0 | AP7: 0 | AQ7: 0 | AR7: 0 | AS7: 0 | AT7: 0 | AU7: 0 | AV7: 0 | AW7: 0 | AX7: 0 | AY7: 0 | AZ7: 0 | BA7: 0 | BB7: 0 | BC7: 0 | BD7: 0 | BE7: 0 | BF7: 0 | BG7: 0 | BH7: 0 | BI7: 0 | BJ7: 0 | BK7: 0 | BL7: 0 | BM7: 0 | BN7: 0 | BO7: =BO8-BO9-BO10+BO11 -> 0 | BP7: 0 | BQ7: 0 | BR7: 0 | BS7: 0 | BT7: 0 | BU7: 0 | BV7: 0 | BW7: 0 | BX7: 0 | BY7: 0 | BZ7: 0 | CA7: 0 | CB7: 0 | CC7: 0 | CD7: 0 | CE7: 0 | CF7: 0 | CG7: 0 | CH7: 0 | CI7: 0 | CJ7: 0 | CK7: 0 | CL7: 0 | CM7: 0 | CN7: 0 | CO7: 0 | CP7: 0 | CQ7: 0 | CR7: 0 | CS7: 0 | CT7: 0 | CU7: =CU8-CU9-CU10+CU11 -> 0 | CV7: 0 | CW7: 0 | CX7: 0 | CY7: 0 | CZ7: 0 | DA7: 0 | DB7: 0 | DC7: 0 | DD7: 0 | DE7: 0 | DF7: 0 | DG7: 0 | DH7: 0 | DI7: 0 | DJ7: 0 | DK7: 0 | DL7: 0 | DM7: 0 | DN7: 0 | DO7: 0 | DP7: 0 | DQ7: 0 | DR7: 0 | DS7: 0 | DT7: 0 | DU7: 0 | DV7: 0 | DW7: 0 | DX7: 0 | DY7: 0 | DZ7: 0 | EA7: =EA8-EA9-EA10+EA11 -> 0 | EB7: 0 | EC7: 0 | ED7: 0 | EE7: 0 | EF7: 0 | EG7: 0 | EH7: 0 | EI7: 0
A8: - Investimentos
A9: - Desinvestimentos
A10: - Receitas
A11: - Despesas
A12: Títulos públicos federais (para negociação) | C12: =C13-C14-C15+C16 -> 0 | D12: 0 | E12: 0 | F12: 0 | G12: 0 | H12: 0 | I12: 0 | J12: 0 | K12: 0 | L12: 0 | M12: 0 | N12: 0 | O12: 0 | P12: 0 | Q12: 0 | R12: 0 | S12: 0 | T12: 0 | U12: 0 | V12: 0 | W12: 0 | X12: 0 | Y12: 0 | Z12: 0 | AA12: 0 | AB12: 0 | AC12: 0 | AD12: 0 | AE12: 0 | AF12: 0 | AG12: 0 | AH12: 0 | AI12: =AI13-AI14-AI15+AI16 -> 0 | AJ12: 0 | AK12: 0 | AL12: 0 | AM12: 0 | AN12: 0 | AO12: 0 | AP12: 0 | AQ12: 0 | AR12: 0 | AS12: 0 | AT12: 0 | AU12: 0 | AV12: 0 | AW12: 0 | AX12: 0 | AY12: 0 | AZ12: 0 | BA12: 0 | BB12: 0 | BC12: 0 | BD12: 0 | BE12: 0 | BF12: 0 | BG12: 0 | BH12: 0 | BI12: 0 | BJ12: 0 | BK12: 0 | BL12: 0 | BM12: 0 | BN12: 0 | BO12: =BO13-BO14-BO15+BO16 -> 0 | BP12: 0 | BQ12: 0 | BR12: 0 | BS12: 0 | BT12: 0 | BU12: 0 | BV12: 0 | BW12: 0 | BX12: 0 | BY12: 0 | BZ12: 0 | CA12: 0 | CB12: 0 | CC12: 0 | CD12: 0 | CE12: 0 | CF12: 0 | CG12: 0 | CH12: 0 | CI12: 0 | CJ12: 0 | CK12: 0 | CL12: 0 | CM12: 0 | CN12: 0 | CO12: 0 | CP12: 0 | CQ12: 0 | CR12: 0 | CS12: 0 | CT12: 0 | CU12: =CU13-CU14-CU15+CU16 -> 0 | CV12: 0 | CW12: 0 | CX12: 0 | CY12: 0 | CZ12: 0 | DA12: 0 | DB12: 0 | DC12: 0 | DD12: 0 | DE12: 0 | DF12: 0 | DG12: 0 | DH12: 0 | DI12: 0 | DJ12: 0 | DK12: 0 | DL12: 0 | DM12: 0 | DN12: 0 | DO12: 0 | DP12: 0 | DQ12: 0 | DR12: 0 | DS12: 0 | DT12: 0 | DU12: 0 | DV12: 0 | DW12: 0 | DX12: 0 | DY12: 0 | DZ12: 0 | EA12: =EA13-EA14-EA15+EA16 -> 0 | EB12: 0 | EC12: 0 | ED12: 0 | EE12: 0 | EF12: 0 | EG12: 0 | EH12: 0 | EI12: 0
A13: - Investimentos
A14: - Desinvestimentos
A15: - Receitas
A16: - Despesas
A17: Renda fixa (exceto títulos públicos federais) | C17: =C18-C19-C20+C21 -> 0 | D17: 0 | E17: 0 | F17: 0 | G17: 0 | H17: 0 | I17: 0 | J17: 0 | K17: 0 | L17: 0 | M17: 0 | N17: 0 | O17: 0 | P17: 0 | Q17: 0 | R17: 0 | S17: 0 | T17: 0 | U17: 0 | V17: 0 | W17: 0 | X17: 0 | Y17: 0 | Z17: 0 | AA17: 0 | AB17: 0 | AC17: 0 | AD17: 0 | AE17: 0 | AF17: 0 | AG17: 0 | AH17: 0 | AI17: =AI18-AI19-AI20+AI21 -> 0 | AJ17: 0 | AK17: 0 | AL17: 0 | AM17: 0 | AN17: 0 | AO17: 0 | AP17: 0 | AQ17: 0 | AR17: 0 | AS17: 0 | AT17: 0 | AU17: 0 | AV17: 0 | AW17: 0 | AX17: 0 | AY17: 0 | AZ17: 0 | BA17: 0 | BB17: 0 | BC17: 0 | BD17: 0 | BE17: 0 | BF17: 0 | BG17: 0 | BH17: 0 | BI17: 0 | BJ17: 0 | BK17: 0 | BL17: 0 | BM17: 0 | BN17: 0 | BO17: =BO18-BO19-BO20+BO21 -> 0 | BP17: 0 | BQ17: 0 | BR17: 0 | BS17: 0 | BT17: 0 | BU17: 0 | BV17: 0 | BW17: 0 | BX17: 0 | BY17: 0 | BZ17: 0 | CA17: 0 | CB17: 0 | CC17: 0 | CD17: 0 | CE17: 0 | CF17: 0 | CG17: 0 | CH17: 0 | CI17: 0 | CJ17: 0 | CK17: 0 | CL17: 0 | CM17: 0 | CN17: 0 | CO17: 0 | CP17: 0 | CQ17: 0 | CR17: 0 | CS17: 0 | CT17: 0 | CU17: =CU18-CU19-CU20+CU21 -> 0 | CV17: 0 | CW17: 0 | CX17: 0 | CY17: 0 | CZ17: 0 | DA17: 0 | DB17: 0 | DC17: 0 | DD17: 0 | DE17: 0 | DF17: 0 | DG17: 0 | DH17: 0 | DI17: 0 | DJ17: 0 | DK17: 0 | DL17: 0 | DM17: 0 | DN17: 0 | DO17: 0 | DP17: 0 | DQ17: 0 | DR17: 0 | DS17: 0 | DT17: 0 | DU17: 0 | DV17: 0 | DW17: 0 | DX17: 0 | DY17: 0 | DZ17: 0 | EA17: =EA18-EA19-EA20+EA21 -> 0 | EB17: 0 | EC17: 0 | ED17: 0 | EE17: 0 | EF17: 0 | EG17: 0 | EH17: 0 | EI17: 0
A18: - Investimentos
A19: - Desinvestimentos
A20: - Receitas
A21: - Despesas
A22: Renda variável | C22: =C23-C24-C25+C26 -> 0 | D22: 0 | E22: 0 | F22: 0 | G22: 0 | H22: 0 | I22: 0 | J22: 0 | K22: 0 | L22: 0 | M22: 0 | N22: 0 | O22: 0 | P22: 0 | Q22: 0 | R22: 0 | S22: 0 | T22: 0 | U22: 0 | V22: 0 | W22: 0 | X22: 0 | Y22: 0 | Z22: 0 | AA22: 0 | AB22: 0 | AC22: 0 | AD22: 0 | AE22: 0 | AF22: 0 | AG22: 0 | AH22: 0 | AI22: =AI23-AI24-AI25+AI26 -> 0 | AJ22: 0 | AK22: 0 | AL22: 0 | AM22: 0 | AN22: 0 | AO22: 0 | AP22: 0 | AQ22: 0 | AR22: 0 | AS22: 0 | AT22: 0 | AU22: 0 | AV22: 0 | AW22: 0 | AX22: 0 | AY22: 0 | AZ22: 0 | BA22: 0 | BB22: 0 | BC22: 0 | BD22: 0 | BE22: 0 | BF22: 0 | BG22: 0 | BH22: 0 | BI22: 0 | BJ22: 0 | BK22: 0 | BL22: 0 | BM22: 0 | BN22: 0 | BO22: =BO23-BO24-BO25+BO26 -> 0 | BP22: 0 | BQ22: 0 | BR22: 0 | BS22: 0 | BT22: 0 | BU22: 0 | BV22: 0 | BW22: 0 | BX22: 0 | BY22: 0 | BZ22: 0 | CA22: 0 | CB22: 0 | CC22: 0 | CD22: 0 | CE22: 0 | CF22: 0 | CG22: 0 | CH22: 0 | CI22: 0 | CJ22: 0 | CK22: 0 | CL22: 0 | CM22: 0 | CN22: 0 | CO22: 0 | CP22: 0 | CQ22: 0 | CR22: 0 | CS22: 0 | CT22: 0 | CU22: =CU23-CU24-CU25+CU26 -> 0 | CV22: 0 | CW22: 0 | CX22: 0 | CY22: 0 | CZ22: 0 | DA22: 0 | DB22: 0 | DC22: 0 | DD22: 0 | DE22: 0 | DF22: 0 | DG22: 0 | DH22: 0 | DI22: 0 | DJ22: 0 | DK22: 0 | DL22: 0 | DM22: 0 | DN22: 0 | DO22: 0 | DP22: 0 | DQ22: 0 | DR22: 0 | DS22: 0 | DT22: 0 | DU22: 0 | DV22: 0 | DW22: 0 | DX22: 0 | DY22: 0 | DZ22: 0 | EA22: =EA23-EA24-EA25+EA26 -> 0 | EB22: 0 | EC22: 0 | ED22: 0 | EE22: 0 | EF22: 0 | EG22: 0 | EH22: 0 | EI22: 0
A23: - Investimentos
A24: - Desinvestimentos
A25: - Receitas
A26: - Despesas
A27: Investimentos estruturados | C27: =C28-C29-C30+C31 -> 0 | D27: 0 | E27: 0 | F27: 0 | G27: 0 | H27: 0 | I27: 0 | J27: 0 | K27: 0 | L27: 0 | M27: 0 | N27: 0 | O27: 0 | P27: 0 | Q27: 0 | R27: 0 | S27: 0 | T27: 0 | U27: 0 | V27: 0 | W27: 0 | X27: 0 | Y27: 0 | Z27: 0 | AA27: 0 | AB27: 0 | AC27: 0 | AD27: 0 | AE27: 0 | AF27: 0 | AG27: 0 | AH27: 0 | AI27: =AI28-AI29-AI30+AI31 -> 0 | AJ27: 0 | AK27: 0 | AL27: 0 | AM27: 0 | AN27: 0 | AO27: 0 | AP27: 0 | AQ27: 0 | AR27: 0 | AS27: 0 | AT27: 0 | AU27: 0 | AV27: 0 | AW27: 0 | AX27: 0 | AY27: 0 | AZ27: 0 | BA27: 0 | BB27: 0 | BC27: 0 | BD27: 0 | BE27: 0 | BF27: 0 | BG27: 0 | BH27: 0 | BI27: 0 | BJ27: 0 | BK27: 0 | BL27: 0 | BM27: 0 | BN27: 0 | BO27: =BO28-BO29-BO30+BO31 -> 0 | BP27: 0 | BQ27: 0 | BR27: 0 | BS27: 0 | BT27: 0 | BU27: 0 | BV27: 0 | BW27: 0 | BX27: 0 | BY27: 0 | BZ27: 0 | CA27: 0 | CB27: 0 | CC27: 0 | CD27: 0 | CE27: 0 | CF27: 0 | CG27: 0 | CH27: 0 | CI27: 0 | CJ27: 0 | CK27: 0 | CL27: 0 | CM27: 0 | CN27: 0 | CO27: 0 | CP27: 0 | CQ27: 0 | CR27: 0 | CS27: 0 | CT27: 0 | CU27: =CU28-CU29-CU30+CU31 -> 0 | CV27: 0 | CW27: 0 | CX27: 0 | CY27: 0 | CZ27: 0 | DA27: 0 | DB27: 0 | DC27: 0 | DD27: 0 | DE27: 0 | DF27: 0 | DG27: 0 | DH27: 0 | DI27: 0 | DJ27: 0 | DK27: 0 | DL27: 0 | DM27: 0 | DN27: 0 | DO27: 0 | DP27: 0 | DQ27: 0 | DR27: 0 | DS27: 0 | DT27: 0 | DU27: 0 | DV27: 0 | DW27: 0 | DX27: 0 | DY27: 0 | DZ27: 0 | EA27: =EA28-EA29-EA30+EA31 -> 0 | EB27: 0 | EC27: 0 | ED27: 0 | EE27: 0 | EF27: 0 | EG27: 0 | EH27: 0 | EI27: 0
A28: - Investimentos
A29: - Desinvestimentos
A30: - Receitas
A31: - Despesas
A32: Investimentos no exterior | C32: =C33-C34-C35+C36 -> 0 | D32: 0 | E32: 0 | F32: 0 | G32: 0 | H32: 0 | I32: 0 | J32: 0 | K32: 0 | L32: 0 | M32: 0 | N32: 0 | O32: 0 | P32: 0 | Q32: 0 | R32: 0 | S32: 0 | T32: 0 | U32: 0 | V32: 0 | W32: 0 | X32: 0 | Y32: 0 | Z32: 0 | AA32: 0 | AB32: 0 | AC32: 0 | AD32: 0 | AE32: 0 | AF32: 0 | AG32: 0 | AH32: 0 | AI32: =AI33-AI34-AI35+AI36 -> 0 | AJ32: 0 | AK32: 0 | AL32: 0 | AM32: 0 | AN32: 0 | AO32: 0 | AP32: 0 | AQ32: 0 | AR32: 0 | AS32: 0 | AT32: 0 | AU32: 0 | AV32: 0 | AW32: 0 | AX32: 0 | AY32: 0 | AZ32: 0 | BA32: 0 | BB32: 0 | BC32: 0 | BD32: 0 | BE32: 0 | BF32: 0 | BG32: 0 | BH32: 0 | BI32: 0 | BJ32: 0 | BK32: 0 | BL32: 0 | BM32: 0 | BN32: 0 | BO32: =BO33-BO34-BO35+BO36 -> 0 | BP32: 0 | BQ32: 0 | BR32: 0 | BS32: 0 | BT32: 0 | BU32: 0 | BV32: 0 | BW32: 0 | BX32: 0 | BY32: 0 | BZ32: 0 | CA32: 0 | CB32: 0 | CC32: 0 | CD32: 0 | CE32: 0 | CF32: 0 | CG32: 0 | CH32: 0 | CI32: 0 | CJ32: 0 | CK32: 0 | CL32: 0 | CM32: 0 | CN32: 0 | CO32: 0 | CP32: 0 | CQ32: 0 | CR32: 0 | CS32: 0 | CT32: 0 | CU32: =CU33-CU34-CU35+CU36 -> 0 | CV32: 0 | CW32: 0 | CX32: 0 | CY32: 0 | CZ32: 0 | DA32: 0 | DB32: 0 | DC32: 0 | DD32: 0 | DE32: 0 | DF32: 0 | DG32: 0 | DH32: 0 | DI32: 0 | DJ32: 0 | DK32: 0 | DL32: 0 | DM32: 0 | DN32: 0 | DO32: 0 | DP32: 0 | DQ32: 0 | DR32: 0 | DS32: 0 | DT32: 0 | DU32: 0 | DV32: 0 | DW32: 0 | DX32: 0 | DY32: 0 | DZ32: 0 | EA32: =EA33-EA34-EA35+EA36 -> 0 | EB32: 0 | EC32: 0 | ED32: 0 | EE32: 0 | EF32: 0 | EG32: 0 | EH32: 0 | EI32: 0
A33: - Investimentos
A34: - Desinvestimentos
A35: - Receitas
A36: - Despesas
A37: Operação com participantes | C37: =C38-C39-C40+C41 -> 0 | D37: 0 | E37: 0 | F37: 0 | G37: 0 | H37: 0 | I37: 0 | J37: 0 | K37: 0 | L37: 0 | M37: 0 | N37: 0 | O37: 0 | P37: 0 | Q37: 0 | R37: 0 | S37: 0 | T37: 0 | U37: 0 | V37: 0 | W37: 0 | X37: 0 | Y37: 0 | Z37: 0 | AA37: 0 | AB37: 0 | AC37: 0 | AD37: 0 | AE37: 0 | AF37: 0 | AG37: 0 | AH37: 0 | AI37: =AI38-AI39-AI40+AI41 -> 0 | AJ37: 0 | AK37: 0 | AL37: 0 | AM37: 0 | AN37: 0 | AO37: 0 | AP37: 0 | AQ37: 0 | AR37: 0 | AS37: 0 | AT37: 0 | AU37: 0 | AV37: 0 | AW37: 0 | AX37: 0 | AY37: 0 | AZ37: 0 | BA37: 0 | BB37: 0 | BC37: 0 | BD37: 0 | BE37: 0 | BF37: 0 | BG37: 0 | BH37: 0 | BI37: 0 | BJ37: 0 | BK37: 0 | BL37: 0 | BM37: 0 | BN37: 0 | BO37: =BO38-BO39-BO40+BO41 -> 0 | BP37: 0 | BQ37: 0 | BR37: 0 | BS37: 0 | BT37: 0 | BU37: 0 | BV37: 0 | BW37: 0 | BX37: 0 | BY37: 0 | BZ37: 0 | CA37: 0 | CB37: 0 | CC37: 0 | CD37: 0 | CE37: 0 | CF37: 0 | CG37: 0 | CH37: 0 | CI37: 0 | CJ37: 0 | CK37: 0 | CL37: 0 | CM37: 0 | CN37: 0 | CO37: 0 | CP37: 0 | CQ37: 0 | CR37: 0 | CS37: 0 | CT37: 0 | CU37: =CU38-CU39-CU40+CU41 -> 0 | CV37: 0 | CW37: 0 | CX37: 0 | CY37: 0 | CZ37: 0 | DA37: 0 | DB37: 0 | DC37: 0 | DD37: 0 | DE37: 0 | DF37: 0 | DG37: 0 | DH37: 0 | DI37: 0 | DJ37: 0 | DK37: 0 | DL37: 0 | DM37: 0 | DN37: 0 | DO37: 0 | DP37: 0 | DQ37: 0 | DR37: 0 | DS37: 0 | DT37: 0 | DU37: 0 | DV37: 0 | DW37: 0 | DX37: 0 | DY37: 0 | DZ37: 0 | EA37: =EA38-EA39-EA40+EA41 -> 0 | EB37: 0 | EC37: 0 | ED37: 0 | EE37: 0 | EF37: 0 | EG37: 0 | EH37: 0 | EI37: 0
A38: - Investimentos
A39: - Desinvestimentos
A40: - Receitas
A41: - Despesas
A42: Imóveis | C42: =C43-C44-C45+C46 -> 0 | D42: 0 | E42: 0 | F42: 0 | G42: 0 | H42: 0 | I42: 0 | J42: 0 | K42: 0 | L42: 0 | M42: 0 | N42: 0 | O42: 0 | P42: 0 | Q42: 0 | R42: 0 | S42: 0 | T42: 0 | U42: 0 | V42: 0 | W42: 0 | X42: 0 | Y42: 0 | Z42: 0 | AA42: 0 | AB42: 0 | AC42: 0 | AD42: 0 | AE42: 0 | AF42: 0 | AG42: 0 | AH42: 0 | AI42: =AI43-AI44-AI45+AI46 -> 0 | AJ42: 0 | AK42: 0 | AL42: 0 | AM42: 0 | AN42: 0 | AO42: 0 | AP42: 0 | AQ42: 0 | AR42: 0 | AS42: 0 | AT42: 0 | AU42: 0 | AV42: 0 | AW42: 0 | AX42: 0 | AY42: 0 | AZ42: 0 | BA42: 0 | BB42: 0 | BC42: 0 | BD42: 0 | BE42: 0 | BF42: 0 | BG42: 0 | BH42: 0 | BI42: 0 | BJ42: 0 | BK42: 0 | BL42: 0 | BM42: 0 | BN42: 0 | BO42: =BO43-BO44-BO45+BO46 -> 0 | BP42: 0 | BQ42: 0 | BR42: 0 | BS42: 0 | BT42: 0 | BU42: 0 | BV42: 0 | BW42: 0 | BX42: 0 | BY42: 0 | BZ42: 0 | CA42: 0 | CB42: 0 | CC42: 0 | CD42: 0 | CE42: 0 | CF42: 0 | CG42: 0 | CH42: 0 | CI42: 0 | CJ42: 0 | CK42: 0 | CL42: 0 | CM42: 0 | CN42: 0 | CO42: 0 | CP42: 0 | CQ42: 0 | CR42: 0 | CS42: 0 | CT42: 0 | CU42: =CU43-CU44-CU45+CU46 -> 0 | CV42: 0 | CW42: 0 | CX42: 0 | CY42: 0 | CZ42: 0 | DA42: 0 | DB42: 0 | DC42: 0 | DD42: 0 | DE42: 0 | DF42: 0 | DG42: 0 | DH42: 0 | DI42: 0 | DJ42: 0 | DK42: 0 | DL42: 0 | DM42: 0 | DN42: 0 | DO42: 0 | DP42: 0 | DQ42: 0 | DR42: 0 | DS42: 0 | DT42: 0 | DU42: 0 | DV42: 0 | DW42: 0 | DX42: 0 | DY42: 0 | DZ42: 0 | EA42: =EA43-EA44-EA45+EA46 -> 0 | EB42: 0 | EC42: 0 | ED42: 0 | EE42: 0 | EF42: 0 | EG42: 0 | EH42: 0 | EI42: 0
A43: - Investimentos
A44: - Desinvestimentos
A45: - Receitas
A46: - Despesas
A47: Outros | C47: =-C48+C49 -> 0 | D47: =D48-D49-D50+D51 -> 0 | E47: =E48-E49-E50+E51 -> 0 | F47: =F48-F49-F50+F51 -> 0 | G47: =G48-G49-G50+G51 -> 0 | H47: =H48-H49-H50+H51 -> 0 | I47: =I48-I49-I50+I51 -> 0 | J47: =J48-J49-J50+J51 -> 0 | K47: =K48-K49-K50+K51 -> 0 | L47: =L48-L49-L50+L51 -> 0 | M47: =M48-M49-M50+M51 -> 0 | N47: =N48-N49-N50+N51 -> 0 | O47: =O48-O49-O50+O51 -> 0 | P47: =P48-P49-P50+P51 -> 0 | Q47: =Q48-Q49-Q50+Q51 -> 0 | R47: =R48-R49-R50+R51 -> 0 | S47: =S48-S49-S50+S51 -> 0 | T47: =T48-T49-T50+T51 -> 0 | U47: =U48-U49-U50+U51 -> 0 | V47: =V48-V49-V50+V51 -> 0 | W47: =W48-W49-W50+W51 -> 0 | X47: =X48-X49-X50+X51 -> 0 | Y47: =Y48-Y49-Y50+Y51 -> 0 | Z47: =Z48-Z49-Z50+Z51 -> 0 | AA47: =AA48-AA49-AA50+AA51 -> 0 | AB47: =AB48-AB49-AB50+AB51 -> 0 | AC47: =AC48-AC49-AC50+AC51 -> 0 | AD47: =AD48-AD49-AD50+AD51 -> 0 | AE47: =AE48-AE49-AE50+AE51 -> 0 | AF47: =AF48-AF49-AF50+AF51 -> 0 | AG47: =AG48-AG49-AG50+AG51 -> 0 | AH47: =AH48-AH49-AH50+AH51 -> 0 | AI47: =AI48-AI49-AI50+AI51 -> 0 | AJ47: =AJ48-AJ49-AJ50+AJ51 -> 0 | AK47: =AK48-AK49-AK50+AK51 -> 0 | AL47: =AL48-AL49-AL50+AL51 -> 0 | AM47: =AM48-AM49-AM50+AM51 -> 0 | AN47: =AN48-AN49-AN50+AN51 -> 0 | AO47: =AO48-AO49-AO50+AO51 -> 0 | AP47: =AP48-AP49-AP50+AP51 -> 0 | AQ47: =AQ48-AQ49-AQ50+AQ51 -> 0 | AR47: =AR48-AR49-AR50+AR51 -> 0 | AS47: =AS48-AS49-AS50+AS51 -> 0 | AT47: =AT48-AT49-AT50+AT51 -> 0 | AU47: =AU48-AU49-AU50+AU51 -> 0 | AV47: =AV48-AV49-AV50+AV51 -> 0 | AW47: =AW48-AW49-AW50+AW51 -> 0 | AX47: =AX48-AX49-AX50+AX51 -> 0 | AY47: =AY48-AY49-AY50+AY51 -> 0 | AZ47: =AZ48-AZ49-AZ50+AZ51 -> 0 | BA47: =BA48-BA49-BA50+BA51 -> 0 | BB47: =BB48-BB49-BB50+BB51 -> 0 | BC47: =BC48-BC49-BC50+BC51 -> 0 | BD47: =BD48-BD49-BD50+BD51 -> 0 | BE47: =BE48-BE49-BE50+BE51 -> 0 | BF47: =BF48-BF49-BF50+BF51 -> 0 | BG47: =BG48-BG49-BG50+BG51 -> 0 | BH47: =BH48-BH49-BH50+BH51 -> 0 | BI47: =BI48-BI49-BI50+BI51 -> 0 | BJ47: =BJ48-BJ49-BJ50+BJ51 -> 0 | BK47: =BK48-BK49-BK50+BK51 -> 0 | BL47: =BL48-BL49-BL50+BL51 -> 0 | BM47: =BM48-BM49-BM50+BM51 -> 0 | BN47: =BN48-BN49-BN50+BN51 -> 0 | BO47: =BO48-BO49-BO50+BO51 -> 0 | BP47: =BP48-BP49-BP50+BP51 -> 0 | BQ47: =BQ48-BQ49-BQ50+BQ51 -> 0 | BR47: =BR48-BR49-BR50+BR51 -> 0 | BS47: =BS48-BS49-BS50+BS51 -> 0 | BT47: =BT48-BT49-BT50+BT51 -> 0 | BU47: =BU48-BU49-BU50+BU51 -> 0 | BV47: =BV48-BV49-BV50+BV51 -> 0 | BW47: =BW48-BW49-BW50+BW51 -> 0 | BX47: =BX48-BX49-BX50+BX51 -> 0 | BY47: =BY48-BY49-BY50+BY51 -> 0 | BZ47: =BZ48-BZ49-BZ50+BZ51 -> 0 | CA47: =CA48-CA49-CA50+CA51 -> 0 | CB47: =CB48-CB49-CB50+CB51 -> 0 | CC47: =CC48-CC49-CC50+CC51 -> 0 | CD47: =CD48-CD49-CD50+CD51 -> 0 | CE47: =CE48-CE49-CE50+CE51 -> 0 | CF47: =CF48-CF49-CF50+CF51 -> 0 | CG47: =CG48-CG49-CG50+CG51 -> 0 | CH47: =CH48-CH49-CH50+CH51 -> 0 | CI47: =CI48-CI49-CI50+CI51 -> 0 | CJ47: =CJ48-CJ49-CJ50+CJ51 -> 0 | CK47: =CK48-CK49-CK50+CK51 -> 0 | CL47: =CL48-CL49-CL50+CL51 -> 0 | CM47: =CM48-CM49-CM50+CM51 -> 0 | CN47: =CN48-CN49-CN50+CN51 -> 0 | CO47: =CO48-CO49-CO50+CO51 -> 0 | CP47: =CP48-CP49-CP50+CP51 -> 0 | CQ47: =CQ48-CQ49-CQ50+CQ51 -> 0 | CR47: =CR48-CR49-CR50+CR51 -> 0 | CS47: =CS48-CS49-CS50+CS51 -> 0 | CT47: =CT48-CT49-CT50+CT51 -> 0 | CU47: =CU48-CU49-CU50+CU51 -> 0 | CV47: =CV48-CV49-CV50+CV51 -> 0 | CW47: =CW48-CW49-CW50+CW51 -> 0 | CX47: =CX48-CX49-CX50+CX51 -> 0 | CY47: =CY48-CY49-CY50+CY51 -> 0 | CZ47: =CZ48-CZ49-CZ50+CZ51 -> 0 | DA47: =DA48-DA49-DA50+DA51 -> 0 | DB47: =DB48-DB49-DB50+DB51 -> 0 | DC47: =DC48-DC49-DC50+DC51 -> 0 | DD47: =DD48-DD49-DD50+DD51 -> 0 | DE47: =DE48-DE49-DE50+DE51 -> 0 | DF47: =DF48-DF49-DF50+DF51 -> 0 | DG47: =DG48-DG49-DG50+DG51 -> 0 | DH47: =DH48-DH49-DH50+DH51 -> 0 | DI47: =DI48-DI49-DI50+DI51 -> 0 | DJ47: =DJ48-DJ49-DJ50+DJ51 -> 0 | DK47: =DK48-DK49-DK50+DK51 -> 0 | DL47: =DL48-DL49-DL50+DL51 -> 0 | DM47: =DM48-DM49-DM50+DM51 -> 0 | DN47: =DN48-DN49-DN50+DN51 -> 0 | DO47: =DO48-DO49-DO50+DO51 -> 0 | DP47: =DP48-DP49-DP50+DP51 -> 0 | DQ47: =DQ48-DQ49-DQ50+DQ51 -> 0 | DR47: =DR48-DR49-DR50+DR51 -> 0 | DS47: =DS48-DS49-DS50+DS51 -> 0 | DT47: =DT48-DT49-DT50+DT51 -> 0 | DU47: =DU48-DU49-DU50+DU51 -> 0 | DV47: =DV48-DV49-DV50+DV51 -> 0 | DW47: =DW48-DW49-DW50+DW51 -> 0 | DX47: =DX48-DX49-DX50+DX51 -> 0 | DY47: =DY48-DY49-DY50+DY51 -> 0 | DZ47: =DZ48-DZ49-DZ50+DZ51 -> 0 | EA47: =EA48-EA49-EA50+EA51 -> 0 | EB47: =EB48-EB49-EB50+EB51 -> 0 | EC47: =EC48-EC49-EC50+EC51 -> 0 | ED47: =ED48-ED49-ED50+ED51 -> 0 | EE47: =EE48-EE49-EE50+EE51 -> 0 | EF47: =EF48-EF49-EF50+EF51 -> 0 | EG47: =EG48-EG49-EG50+EG51 -> 0 | EH47: =EH48-EH49-EH50+EH51 -> 0 | EI47: =EI48-EI49-EI50+EI51 -> 0
A48: - Fluxos de dívida contratada
A49: - Transferências ao PGA
A51: SALDOS DE ATIVO
A52: SALDO DO ATIVO | C52: =SUM(C53:C62) -> 0 | D52: =SUM(D53:D62) -> 0 | E52: =SUM(E53:E62) -> 0 | F52: 0 | G52: 0 | H52: 0 | I52: 0 | J52: 0 | K52: 0 | L52: 0 | M52: 0 | N52: 0 | O52: 0 | P52: 0 | Q52: 0 | R52: 0 | S52: 0 | T52: 0 | U52: 0 | V52: 0 | W52: 0 | X52: 0 | Y52: 0 | Z52: 0 | AA52: 0 | AB52: 0 | AC52: 0 | AD52: 0 | AE52: 0 | AF52: 0 | AG52: 0 | AH52: 0 | AI52: 0 | AJ52: 0 | AK52: 0 | AL52: 0 | AM52: 0 | AN52: 0 | AO52: 0 | AP52: 0 | AQ52: 0 | AR52: 0 | AS52: 0 | AT52: 0 | AU52: 0 | AV52: 0 | AW52: 0 | AX52: 0 | AY52: 0 | AZ52: 0 | BA52: 0 | BB52: 0 | BC52: 0 | BD52: 0 | BE52: 0 | BF52: 0 | BG52: 0 | BH52: 0 | BI52: 0 | BJ52: 0 | BK52: 0 | BL52: 0 | BM52: 0 | BN52: 0 | BO52: 0 | BP52: 0 | BQ52: =SUM(BQ53:BQ62) -> 0 | BR52: 0 | BS52: 0 | BT52: 0 | BU52: 0 | BV52: 0 | BW52: 0 | BX52: 0 | BY52: 0 | BZ52: 0 | CA52: 0 | CB52: 0 | CC52: 0 | CD52: 0 | CE52: 0 | CF52: 0 | CG52: 0 | CH52: 0 | CI52: 0 | CJ52: 0 | CK52: 0 | CL52: 0 | CM52: 0 | CN52: 0 | CO52: 0 | CP52: 0 | CQ52: 0 | CR52: 0 | CS52: 0 | CT52: 0 | CU52: 0 | CV52: 0 | CW52: 0 | CX52: 0 | CY52: 0 | CZ52: 0 | DA52: 0 | DB52: 0 | DC52: 0 | DD52: 0 | DE52: 0 | DF52: 0 | DG52: 0 | DH52: 0 | DI52: 0 | DJ52: 0 | DK52: 0 | DL52: 0 | DM52: 0 | DN52: 0 | DO52: 0 | DP52: 0 | DQ52: 0 | DR52: 0 | DS52: 0 | DT52: 0 | DU52: 0 | DV52: 0 | DW52: 0 | DX52: 0 | DY52: 0 | DZ52: 0 | EA52: 0 | EB52: 0 | EC52: =SUM(EC53:EC62) -> 0 | ED52: 0 | EE52: 0 | EF52: 0 | EG52: 0 | EH52: 0 | EI52: 0
A53: Títulos públicos federais (mantidos até o vencimento)
A54: Títulos públicos federais (para negociação)
A55: Renda fixa (exceto títulos públicos federais)
A56: Renda variável
A57: Investimentos estruturados
A58: Investimentos no exterior
A59: Operação com participantes
A60: Imóveis
A61: Dívidas contratadas
A62: Outros ativos
A64: RENTABILIDADES
A65: RENTABILIDADE DO PLANO | C65: =C66 -> 0 | D65: =D66 -> 0 | E65: 0 | F65: 0 | G65: 0 | H65: 0 | I65: 0 | J65: 0 | K65: 0 | L65: 0 | M65: 0 | N65: 0 | O65: 0 | P65: 0 | Q65: 0 | R65: 0 | S65: 0 | T65: 0 | U65: 0 | V65: 0 | W65: 0 | X65: 0 | Y65: 0 | Z65: 0 | AA65: 0 | AB65: 0 | AC65: 0 | AD65: 0 | AE65: 0 | AF65: 0 | AG65: 0 | AH65: 0 | AI65: 0 | AJ65: 0 | AK65: 0 | AL65: 0 | AM65: 0 | AN65: 0 | AO65: 0 | AP65: 0 | AQ65: 0 | AR65: 0 | AS65: 0 | AT65: 0 | AU65: 0 | AV65: 0 | AW65: 0 | AX65: 0 | AY65: 0 | AZ65: 0 | BA65: 0 | BB65: 0 | BC65: 0 | BD65: 0 | BE65: 0 | BF65: 0 | BG65: 0 | BH65: 0 | BI65: 0 | BJ65: 0 | BK65: 0 | BL65: 0 | BM65: 0 | BN65: 0 | BO65: 0 | BP65: =BP66 -> 0 | BQ65: 0 | BR65: 0 | BS65: 0 | BT65: 0 | BU65: 0 | BV65: 0 | BW65: 0 | BX65: 0 | BY65: 0 | BZ65: 0 | CA65: 0 | CB65: 0 | CC65: 0 | CD65: 0 | CE65: 0 | CF65: 0 | CG65: 0 | CH65: 0 | CI65: 0 | CJ65: 0 | CK65: 0 | CL65: 0 | CM65: 0 | CN65: 0 | CO65: 0 | CP65: 0 | CQ65: 0 | CR65: 0 | CS65: 0 | CT65: 0 | CU65: 0 | CV65: 0 | CW65: 0 | CX65: 0 | CY65: 0 | CZ65: 0 | DA65: 0 | DB65: 0 | DC65: 0 | DD65: 0 | DE65: 0 | DF65: 0 | DG65: 0 | DH65: 0 | DI65: 0 | DJ65: 0 | DK65: 0 | DL65: 0 | DM65: 0 | DN65: 0 | DO65: 0 | DP65: 0 | DQ65: 0 | DR65: 0 | DS65: 0 | DT65: 0 | DU65: 0 | DV65: 0 | DW65: 0 | DX65: 0 | DY65: 0 | DZ65: 0 | EA65: 0 | EB65: =EB66 -> 0 | EC65: 0 | ED65: 0 | EE65: 0 | EF65: 0 | EG65: 0 | EH65: 0 | EI65: 0
A66: Plano
A67: Títulos públicos federais (mantidos até o vencimento)
A68: Títulos públicos federais (para negociação)
A69: Renda fixa (exceto títulos públicos federais)
A70: Renda variável
A71: Investimentos estruturados
A72: Investimentos no exterior
A73: Operação com participantes
A74: Imóveis
A76: ÍNDICE DE INFLAÇÃO: | B76: IPCA
A77: PROJEÇÃO DO ÍNDICE INFLACIONÁRIO | C77: =C78 -> 0 | D77: =D78 -> 0 | E77: 0 | F77: 0 | G77: 0 | H77: 0 | I77: 0 | J77: 0 | K77: 0 | L77: 0 | M77: 0 | N77: 0 | O77: 0 | P77: 0 | Q77: 0 | R77: 0 | S77: 0 | T77: 0 | U77: 0 | V77: 0 | W77: 0 | X77: 0 | Y77: 0 | Z77: 0 | AA77: 0 | AB77: 0 | AC77: 0 | AD77: 0 | AE77: 0 | AF77: 0 | AG77: 0 | AH77: 0 | AI77: 0 | AJ77: 0 | AK77: 0 | AL77: 0 | AM77: 0 | AN77: 0 | AO77: 0 | AP77: 0 | AQ77: 0 | AR77: 0 | AS77: 0 | AT77: 0 | AU77: 0 | AV77: 0 | AW77: 0 | AX77: 0 | AY77: 0 | AZ77: 0 | BA77: 0 | BB77: 0 | BC77: 0 | BD77: 0 | BE77: 0 | BF77: 0 | BG77: 0 | BH77: 0 | BI77: 0 | BJ77: 0 | BK77: 0 | BL77: 0 | BM77: 0 | BN77: 0 | BO77: 0 | BP77: =BP78 -> 0 | BQ77: 0 | BR77: 0 | BS77: 0 | BT77: 0 | BU77: 0 | BV77: 0 | BW77: 0 | BX77: 0 | BY77: 0 | BZ77: 0 | CA77: 0 | CB77: 0 | CC77: 0 | CD77: 0 | CE77: 0 | CF77: 0 | CG77: 0 | CH77: 0 | CI77: 0 | CJ77: 0 | CK77: 0 | CL77: 0 | CM77: 0 | CN77: 0 | CO77: 0 | CP77: 0 | CQ77: 0 | CR77: 0 | CS77: 0 | CT77: 0 | CU77: 0 | CV77: 0 | CW77: 0 | CX77: 0 | CY77: 0 | CZ77: 0 | DA77: 0 | DB77: 0 | DC77: 0 | DD77: 0 | DE77: 0 | DF77: 0 | DG77: 0 | DH77: 0 | DI77: 0 | DJ77: 0 | DK77: 0 | DL77: 0 | DM77: 0 | DN77: 0 | DO77: 0 | DP77: 0 | DQ77: 0 | DR77: 0 | DS77: 0 | DT77: 0 | DU77: 0 | DV77: 0 | DW77: 0 | DX77: 0 | DY77: 0 | DZ77: 0 | EA77: 0 | EB77: =EB78 -> 0 | EC77: 0 | ED77: 0 | EE77: 0 | EF77: 0 | EG77: 0 | EH77: 0 | EI77: 0
A78: Projeção do índice inflacionário

Sheet Projeção do patr. de cobertura
A2: EXERCÍCIOS | B2: 2015 | C2: =B2+1 -> 2016 | D2: =C2+1 -> 2017 | E2: =D2+1 -> 2018 | F2: 2019 | G2: 2020 | H2: 2021 | I2: 2022 | J2: 2023 | K2: 2024 | L2: 2025 | M2: 2026 | N2: 2027 | O2: 2028 | P2: 2029 | Q2: 2030 | R2: 2031 | S2: 2032 | T2: 2033 | U2: 2034 | V2: 2035 | W2: 2036 | X2: 2037 | Y2: 2038 | Z2: 2039 | AA2: 2040 | AB2: 2041 | AC2: 2042 | AD2: 2043 | AE2: 2044 | AF2: 2045 | AG2: 2046 | AH2: 2047 | AI2: 2048 | AJ2: 2049 | AK2: 2050 | AL2: 2051 | AM2: 2052 | AN2: 2053 | AO2: 2054 | AP2: 2055 | AQ2: 2056 | AR2: 2057 | AS2: 2058 | AT2: 2059 | AU2: 2060 | AV2: 2061 | AW2: 2062 | AX2: 2063 | AY2: 2064 | AZ2: 2065 | BA2: 2066 | BB2: 2067 | BC2: 2068 | BD2: 2069 | BE2: 2070 | BF2: 2071 | BG2: 2072 | BH2: 2073 | BI2: 2074 | BJ2: 2075 | BK2: 2076 | BL2: 2077 | BM2: 2078 | BN2: 2079 | BO2: 2080 | BP2: 2081 | BQ2: =BP2+1 -> 2082 | BR2: 2083 | BS2: 2084 | BT2: 2085 | BU2: 2086 | BV2: 2087 | BW2: 2088 | BX2: 2089 | BY2: 2090 | BZ2: 2091 | CA2: 2092 | CB2: 2093 | CC2: 2094 | CD2: 2095 | CE2: 2096 | CF2: 2097 | CG2: 2098 | CH2: 2099 | CI2: 2100 | CJ2: 2101 | CK2: 2102 | CL2: =CK2+1 -> 2103 | CM2: =CL2+1 -> 2104 | CN2: =CM2+1 -> 2105 | CO2: =CN2+1 -> 2106 | CP2: =CO2+1 -> 2107 | CQ2: =CP2+1 -> 2108 | CR2: =CQ2+1 -> 2109 | CS2: =CR2+1 -> 2110 | CT2: =CS2+1 -> 2111 | CU2: =CT2+1 -> 2112 | CV2: =CU2+1 -> 2113 | CW2: =CV2+1 -> 2114 | CX2: =CW2+1 -> 2115 | CY2: =CX2+1 -> 2116 | CZ2: =CY2+1 -> 2117 | DA2: =CZ2+1 -> 2118 | DB2: =DA2+1 -> 2119 | DC2: =DB2+1 -> 2120 | DD2: =DC2+1 -> 2121 | DE2: =DD2+1 -> 2122 | DF2: =DE2+1 -> 2123 | DG2: =DF2+1 -> 2124 | DH2: =DG2+1 -> 2125 | DI2: =DH2+1 -> 2126 | DJ2: =DI2+1 -> 2127 | DK2: =DJ2+1 -> 2128 | DL2: =DK2+1 -> 2129 | DM2: =DL2+1 -> 2130 | DN2: =DM2+1 -> 2131 | DO2: =DN2+1 -> 2132 | DP2: =DO2+1 -> 2133 | DQ2: =DP2+1 -> 2134 | DR2: =DQ2+1 -> 2135 | DS2: =DR2+1 -> 2136 | DT2: =DS2+1 -> 2137 | DU2: =DT2+1 -> 2138 | DV2: =DU2+1 -> 2139 | DW2: =DV2+1 -> 2140 | DX2: =DW2+1 -> 2141 | DY2: =DX2+1 -> 2142 | DZ2: =DY2+1 -> 2143 | EA2: =DZ2+1 -> 2144 | EB2: =EA2+1 -> 2145 | EC2: =EB2+1 -> 2146 | ED2: =EC2+1 -> 2147 | EE2: =ED2+1 -> 2148 | EF2: =EE2+1 -> 2149 | EG2: =EF2+1 -> 2150 | EH2: =EG2+1 -> 2151
A4: FLUXOS DE SEGURIDADE E OUTROS
A5: Recebimentos | B5: =SUM(B6:B9) -> 0 | C5: 0 | D5: 0 | E5: 0 | F5: 0 | G5: 0 | H5: 0 | I5: 0 | J5: 0 | K5: 0 | L5: 0 | M5: 0 | N5: 0 | O5: 0 | P5: 0 | Q5: 0 | R5: 0 | S5: 0 | T5: 0 | U5: 0 | V5: 0 | W5: 0 | X5: 0 | Y5: 0 | Z5: 0 | AA5: 0 | AB5: 0 | AC5: 0 | AD5: 0 | AE5: 0 | AF5: 0 | AG5: 0 | AH5: 0 | AI5: 0 | AJ5: 0 | AK5: 0 | AL5: 0 | AM5: 0 | AN5: 0 | AO5: 0 | AP5: 0 | AQ5: 0 | AR5: 0 | AS5: 0 | AT5: 0 | AU5: 0 | AV5: 0 | AW5: 0 | AX5: 0 | AY5: 0 | AZ5: 0 | BA5: 0 | BB5: 0 | BC5: 0 | BD5: 0 | BE5: 0 | BF5: 0 | BG5: 0 | BH5: 0 | BI5: 0 | BJ5: 0 | BK5: 0 | BL5: 0 | BM5: 0 | BN5: =SUM(BN6:BN9) -> 0 | BO5: 0 | BP5: 0 | BQ5: 0 | BR5: 0 | BS5: 0 | BT5: 0 | BU5: 0 | BV5: 0 | BW5: 0 | BX5: 0 | BY5: 0 | BZ5: 0 | CA5: 0 | CB5: 0 | CC5: 0 | CD5: 0 | CE5: 0 | CF5: 0 | CG5: 0 | CH5: 0 | CI5: 0 | CJ5: 0 | CK5: 0 | CL5: =SUM(CL6:CL9) -> 0 | CM5: 0 | CN5: 0 | CO5: 0 | CP5: 0 | CQ5: 0 | CR5: 0 | CS5: 0 | CT5: 0 | CU5: 0 | CV5: 0 | CW5: 0 | CX5: 0 | CY5: 0 | CZ5: 0 | DA5: 0 | DB5: 0 | DC5: 0 | DD5: 0 | DE5: 0 | DF5: 0 | DG5: 0 | DH5: 0 | DI5: 0 | DJ5: 0 | DK5: 0 | DL5: 0 | DM5: 0 | DN5: 0 | DO5: 0 | DP5: 0 | DQ5: 0 | DR5: 0 | DS5: 0 | DT5: 0 | DU5: 0 | DV5: 0 | DW5: 0 | DX5: 0 | DY5: 0 | DZ5: 0 | EA5: 0 | EB5: 0 | EC5: 0 | ED5: 0 | EE5: 0 | EF5: 0 | EG5: 0 | EH5: 0
A6: - Contribuições Normais
A7: - Contribuições Extraordinárias
A8: - Utilização de Fundos Previdenciais
A9: - Outras Receitas
A10: Pagamentos | B10: =-SUM(B11:B17) -> 0 | C10: =-SUM(C11:C17) -> 0 | D10: 0 | E10: 0 | F10: 0 | G10: 0 | H10: 0 | I10: 0 | J10: 0 | K10: 0 | L10: 0 | M10: 0 | N10: 0 | O10: 0 | P10: 0 | Q10: 0 | R10: 0 | S10: 0 | T10: 0 | U10: 0 | V10: 0 | W10: 0 | X10: 0 | Y10: 0 | Z10: 0 | AA10: 0 | AB10: 0 | AC10: 0 | AD10: 0 | AE10: 0 | AF10: 0 | AG10: 0 | AH10: 0 | AI10: 0 | AJ10: 0 | AK10: 0 | AL10: 0 | AM10: 0 | AN10: 0 | AO10: 0 | AP10: 0 | AQ10: 0 | AR10: 0 | AS10: 0 | AT10: 0 | AU10: 0 | AV10: 0 | AW10: 0 | AX10: 0 | AY10: 0 | AZ10: 0 | BA10: 0 | BB10: 0 | BC10: 0 | BD10: 0 | BE10: 0 | BF10: 0 | BG10: 0 | BH10: 0 | BI10: 0 | BJ10: 0 | BK10: 0 | BL10: 0 | BM10: 0 | BN10: 0 | BO10: =-SUM(BO11:BO17) -> 0 | BP10: 0 | BQ10: 0 | BR10: 0 | BS10: 0 | BT10: 0 | BU10: 0 | BV10: 0 | BW10: 0 | BX10: 0 | BY10: 0 | BZ10: 0 | CA10: 0 | CB10: 0 | CC10: 0 | CD10: 0 | CE10: 0 | CF10: 0 | CG10: 0 | CH10: 0 | CI10: 0 | CJ10: 0 | CK10: 0 | CL10: 0 | CM10: 0 | CN10: 0 | CO10: 0 | CP10: 0 | CQ10: 0 | CR10: 0 | CS10: 0 | CT10: 0 | CU10: 0 | CV10: 0 | CW10: 0 | CX10: 0 | CY10: 0 | CZ10: 0 | DA10: 0 | DB10: 0 | DC10: 0 | DD10: 0 | DE10: 0 | DF10: 0 | DG10: 0 | DH10: 0 | DI10: 0 | DJ10: 0 | DK10: 0 | DL10: 0 | DM10: 0 | DN10: 0 | DO10: 0 | DP10: 0 | DQ10: 0 | DR10: 0 | DS10: 0 | DT10: 0 | DU10: 0 | DV10: 0 | DW10: 0 | DX10: 0 | DY10: 0 | DZ10: 0 | EA10: =-SUM(EA11:EA17) -> 0 | EB10: 0 | EC10: 0 | ED10: 0 | EE10: 0 | EF10: 0 | EG10: 0 | EH10: 0
A11: - Benefícios Programados
A12: - Benefícios de Risco
A13: - Diferenças de Benefícios (demandas judiciais)
A14: - Resgates
A15: - Portabilidade
A16: - Constituição de Fundos Previdenciais
A17: - Outros Pagamentos
A19: PATRIMÔNIO DE COBERTURA
A20: Fluxo de Caixa | B20: =B5+B10 -> 0 | C20: =C5+C10 -> 0 | D20: 0 | E20: 0 | F20: 0 | G20: 0 | H20: 0 | I20: 0 | J20: 0 | K20: 0 | L20: 0 | M20: 0 | N20: 0 | O20: 0 | P20: 0 | Q20: 0 | R20: 0 | S20: 0 | T20: 0 | U20: 0 | V20: 0 | W20: 0 | X20: 0 | Y20: 0 | Z20: 0 | AA20: 0 | AB20: 0 | AC20: 0 | AD20: 0 | AE20: 0 | AF20: 0 | AG20: 0 | AH20: 0 | AI20: 0 | AJ20: 0 | AK20: 0 | AL20: 0 | AM20: 0 | AN20: 0 | AO20: 0 | AP20: 0 | AQ20: 0 | AR20: 0 | AS20: 0 | AT20: 0 | AU20: 0 | AV20: 0 | AW20: 0 | AX20: 0 | AY20: 0 | AZ20: 0 | BA20: 0 | BB20: 0 | BC20: 0 | BD20: 0 | BE20: 0 | BF20: 0 | BG20: 0 | BH20: 0 | BI20: 0 | BJ20: 0 | BK20: 0 | BL20: 0 | BM20: 0 | BN20: 0 | BO20: =BO5+BO10 -> 0 | BP20: 0 | BQ20: 0 | BR20: 0 | BS20: 0 | BT20: 0 | BU20: 0 | BV20: 0 | BW20: 0 | BX20: 0 | BY20: 0 | BZ20: 0 | CA20: 0 | CB20: 0 | CC20: 0 | CD20: 0 | CE20: 0 | CF20: 0 | CG20: 0 | CH20: 0 | CI20: 0 | CJ20: 0 | CK20: 0 | CL20: 0 | CM20: 0 | CN20: 0 | CO20: 0 | CP20: 0 | CQ20: 0 | CR20: 0 | CS20: 0 | CT20: 0 | CU20: 0 | CV20: 0 | CW20: 0 | CX20: 0 | CY20: 0 | CZ20: 0 | DA20: 0 | DB20: 0 | DC20: 0 | DD20: 0 | DE20: 0 | DF20: 0 | DG20: 0 | DH20: 0 | DI20: 0 | DJ20: 0 | DK20: 0 | DL20: 0 | DM20: 0 | DN20: 0 | DO20: 0 | DP20: 0 | DQ20: 0 | DR20: 0 | DS20: 0 | DT20: 0 | DU20: 0 | DV20: 0 | DW20: 0 | DX20: 0 | DY20: 0 | DZ20: 0 | EA20: =EA5+EA10 -> 0 | EB20: 0 | EC20: 0 | ED20: 0 | EE20: 0 | EF20: 0 | EG20: 0 | EH20: 0
A21: - Rentabilidade Real Projetada
A22: - Patrimônio de Cobertura Projetado

Sheet Renda Fixa "na curva"
M1: DI
A2: Data de Aquisição ou reclassificação | B2: ISIN | C2: Nome do Título | D2: Emissor | E2: Data de Vencimento | F2: Indexador | G2: Percentual do indexador | H2: Expectativa média para o Indexador | I2: Taxa de apropriação dos juros | J2: Preço unitário | K2: Quantidade | M2: SELIC
M3: IPCA
M4: IGP-M
M5: INPC
